bitfinex-derivatives/quotes_BTCF0:USTF0_20241104
["timestamp","ask_amount","ask_price","bid_price","bid_amount"]
[1730738494466,0.21168941,68137.0,68127.0,0.3608]
[1730738494664,0.07341,68135.0,68129.0,0.073415]
[1730738494882,0.009,68136.0,68127.0,0.3608]
[1730738495178,0.009,68136.0,68121.0,0.3608]
[1730738495366,0.073416,68129.0,68121.0,0.434223]
[1730738495570,0.073416,68129.0,68122.0,0.073423]
[1730738496161,0.073416,68129.0,68127.0,0.006]
[1730738496566,0.073411,68133.0,68127.0,0.006]
[1730738496773,0.0114764,68136.0,68127.0,0.079417]
[1730738496970,0.0104764,68136.0,68121.0,0.3608]
[1730738497169,0.002,68129.0,68124.0,0.07342]
[1730738497374,0.002,68129.0,68122.0,0.015]
[1730738497672,0.002,68129.0,68127.0,0.005]
[1730738497673,0.001,68129.0,68127.0,0.005]
[1730738498277,0.002,68129.0,68125.0,0.073419]
[1730738498677,0.001,68129.0,68127.0,0.004]
[1730738499378,0.001,68129.0,68125.0,0.073419]
[1730738499673,0.002,68129.0,68125.0,0.079419]
[1730738499881,0.002,68129.0,68127.0,0.005]
[1730738500268,0.002,68129.0,68127.0,0.009]
[1730738500269,0.001,68129.0,68127.0,0.009]
[1730738500962,0.14106505,68135.0,68127.0,0.004]
[1730738501171,0.073416,68128.0,68127.0,0.009]
[1730738501877,0.001,68129.0,68127.0,0.009]
[1730738502267,0.073416,68128.0,68127.0,0.06748987]
[1730738503279,0.073416,68128.0,68127.0,0.06348987]
[1730738503476,0.074416,68128.0,68127.0,0.06948987]
[1730738503977,0.073416,68128.0,68127.0,0.06648987]
[1730738504569,0.073416,68128.0,68127.0,0.009]
[1730738505169,0.073416,68128.0,68127.0,0.06245402]
[1730738505368,0.073416,68128.0,68127.0,0.06445402]
[1730738505579,0.073416,68128.0,68127.0,0.006]
[1730738505979,0.073416,68128.0,68125.0,0.05845402]
[1730738506282,0.073416,68128.0,68127.0,0.007]
[1730738506783,0.073416,68128.0,68127.0,0.005]
[1730738506983,0.073411,68134.0,68130.0,0.073413]
[1730738507284,0.01050468,68135.0,68131.0,0.0738]
[1730738507487,0.073405,68139.0,68134.0,0.11726221]
[1730738507778,0.65422505,68145.0,68135.0,0.04385221]
[1730738507779,0.434207,68137.0,68135.0,0.04385221]
[1730738508170,0.073408,68136.0,68135.0,0.04385221]
[1730738509080,0.513688,68136.0,68131.0,0.04385264]
[1730738509277,0.513688,68136.0,68130.0,0.003]
[1730738509278,0.073413,68131.0,68130.0,0.003]
[1730738509575,0.11157805,68131.0,68130.0,0.003]
[1730738509774,0.03816505,68131.0,68127.0,0.03669617]
[1730738509975,0.073416,68128.0,68127.0,0.03669617]
[1730738510180,0.11158105,68128.0,68127.0,0.03669617]
[1730738510984,0.11154727,68128.0,68127.0,0.03669617]
[1730738511280,0.15558237,68128.0,68127.0,0.03669617]
[1730738511583,0.59594237,68128.0,68127.0,0.03669617]
[1730738512177,0.002,68131.0,68130.0,0.073414]
[1730738512872,0.073402,68142.0,68129.0,0.0726]
[1730738513074,0.3608,68143.0,68129.0,0.0726]
[1730738513075,0.03862719,68141.0,68132.0,0.3608]
[1730738513275,0.00220206,68146.0,68139.0,0.073405]
[1730738513470,0.03928445,68145.0,68144.0,0.073399]
[1730738514077,0.03928445,68145.0,68144.0,0.434199]
[1730738514271,0.03950331,68145.0,68144.0,0.434199]
[1730738514471,0.03950331,68145.0,68144.0,0.3608]
[1730738515283,0.11290131,68145.0,68144.0,0.3608]
[1730738515673,0.48070131,68145.0,68144.0,0.001]
[1730738515874,0.48770131,68145.0,68144.0,0.002]
[1730738516284,0.5332176,68145.0,68144.0,0.002]
[1730738516974,0.9734576,68145.0,68144.0,0.002]
[1730738517282,0.888438,68145.0,68144.0,0.002]
[1730738520384,0.513679,68144.0,68128.0,0.05845402]
[1730738520679,0.7513,68145.0,68114.0,0.36476938]
[1730738520680,0.073416,68128.0,68126.0,0.073419]
[1730738520880,0.073416,68128.0,68123.0,0.073422]
[1730738521387,0.073416,68128.0,68119.0,0.0768]
[1730738521388,0.073416,68128.0,68125.0,0.073419]
[1730738522184,0.074416,68128.0,68127.0,0.04169617]
[1730738522378,0.21548105,68128.0,68127.0,0.04169617]
[1730738522881,0.074416,68128.0,68127.0,0.04169617]
[1730738523286,0.073416,68128.0,68127.0,0.03869617]
[1730738523882,0.079416,68128.0,68127.0,0.03669617]
[1730738524191,0.084416,68128.0,68127.0,0.03669617]
[1730738524390,0.12318501,68128.0,68127.0,0.03669617]
[1730738524683,0.13334959,68128.0,68127.0,0.03669617]
[1730738525285,0.12734959,68128.0,68127.0,0.11011417]
[1730738525487,0.13334959,68128.0,68127.0,0.03769617]
[1730738526077,0.13434959,68128.0,68127.0,0.03869617]
[1730738527477,0.23664563,68128.0,68127.0,0.03869617]
[1730738527682,0.2754822,68128.0,68127.0,0.03869617]
[1730738528895,0.27523675,68128.0,68127.0,0.03869617]
[1730738531592,0.23664563,68128.0,68127.0,0.03869617]
[1730738532297,0.23664563,68128.0,68127.0,0.09715019]
[1730738532499,0.23664563,68128.0,68127.0,0.03869617]
[1730738534001,0.23664563,68128.0,68127.0,0.09726404]
[1730738534698,0.23664563,68128.0,68114.0,0.0772]
[1730738534699,0.073421,68124.0,68121.0,0.05856787]
[1730738534992,0.073421,68124.0,68115.0,0.05856787]
[1730738534993,0.073427,68118.0,68115.0,0.05856787]
[1730738535183,0.073433,68113.0,68112.0,0.05856787]
[1730738535384,0.073433,68113.0,68112.0,0.05855942]
[1730738535591,0.073433,68113.0,68112.0,0.05855829]
[1730738535796,0.073434,68112.0,68111.0,0.073435]
[1730738535999,0.073435,68111.0,68110.0,0.147836]
[1730738536497,0.073437,68109.0,68108.0,0.0748]
[1730738536691,0.14106505,68114.0,68109.0,0.073437]
[1730738536692,0.073433,68113.0,68109.0,0.073437]
[1730738536898,0.074433,68113.0,68112.0,0.06354604]
[1730738537499,0.03773683,68113.0,68112.0,0.06354604]
[1730738538099,0.03773683,68113.0,68112.0,0.005]
[1730738538291,0.001,68113.0,68112.0,0.005]
[1730738538491,0.44468291,68116.0,68111.0,0.073435]
[1730738538696,0.37125391,68116.0,68114.0,0.05852165]
[1730738539399,0.37125391,68116.0,68112.0,0.009]
[1730738539703,0.37125391,68116.0,68113.0,0.073432]
[1730738540108,0.37225391,68116.0,68114.0,0.005]
[1730738540298,0.37325391,68116.0,68114.0,0.009]
[1730738541095,0.37325391,68116.0,68114.0,0.004]
[1730738541614,0.3628,68116.0,68115.0,0.05850508]
[1730738541793,0.3628,68116.0,68115.0,0.05850506]
[1730738542301,0.074429,68116.0,68115.0,0.05850506]
[1730738542506,0.001,68116.0,68115.0,0.05850506]
[1730738542805,0.002,68116.0,68115.0,0.05850506]
[1730738543006,0.001,68116.0,68114.0,0.005]
[1730738543202,0.002,68116.0,68115.0,0.004]
[1730738543508,0.01247657,68116.0,68115.0,0.009]
[1730738543709,0.002,68116.0,68115.0,0.009]
[1730738544093,0.001,68116.0,68115.0,0.004]
[1730738544306,0.002,68116.0,68115.0,0.004]
[1730738544807,0.07343,68115.0,68114.0,0.009]
[1730738545108,0.43423,68115.0,68114.0,0.009]
[1730738545295,0.43423,68115.0,68114.0,0.06356074]
[1730738545912,0.073432,68114.0,68113.0,0.05856074]
[1730738546110,0.073435,68111.0,68108.0,0.14787233]
[1730738546299,0.073435,68111.0,68109.0,0.07307233]
[1730738546497,0.14106505,68114.0,68108.0,0.0748]
[1730738546498,0.073437,68109.0,68108.0,0.0748]
[1730738546700,0.57530205,68109.0,68108.0,0.0748]
[1730738548207,0.21450205,68109.0,68108.0,0.0798]
[1730738548703,0.21450205,68109.0,68108.0,0.0748]
[1730738548903,0.21550205,68109.0,68108.0,0.0798]
[1730738549219,0.21650205,68109.0,68108.0,0.0848]
[1730738551014,0.22671746,68109.0,68108.0,0.0848]
[1730738551602,0.58751746,68109.0,68108.0,0.01]
[1730738552009,0.58751746,68109.0,68101.0,0.00220248]
[1730738552010,0.073444,68102.0,68101.0,0.00220248]
[1730738552323,0.57530905,68102.0,68101.0,0.00220248]
[1730738553315,0.57630905,68102.0,68101.0,0.005]
[1730738554011,0.073446,68101.0,68100.0,0.101]
[1730738555512,0.074446,68101.0,68100.0,0.101]
[1730738555721,0.075446,68101.0,68100.0,0.101]
[1730738556316,0.08602773,68101.0,68100.0,0.101]
[1730738557013,0.08602773,68101.0,68100.0,0.15958185]
[1730738557218,0.08602773,68101.0,68100.0,0.101]
[1730738557424,0.08602773,68101.0,68100.0,0.15957914]
[1730738557720,0.08602773,68101.0,68100.0,0.15957898]
[1730738558218,0.08602773,68101.0,68100.0,0.101]
[1730738558518,0.52654773,68101.0,68100.0,0.101]
[1730738558814,0.59984773,68101.0,68100.0,0.101]
[1730738559022,0.59984773,68101.0,68097.0,0.05857925]
[1730738559023,0.073449,68098.0,68097.0,0.05857925]
[1730738559217,0.073449,68098.0,68089.0,0.0713]
[1730738559218,0.434249,68098.0,68093.0,0.05857416]
[1730738559415,0.434249,68098.0,68092.0,0.05857416]
[1730738559416,0.073454,68093.0,68092.0,0.05857416]
[1730738559617,0.073457,68090.0,68089.0,0.0713]
[1730738559821,0.434257,68090.0,68089.0,0.0713]
[1730738560223,0.3608,68090.0,68083.0,0.07307233]
[1730738560409,0.073463,68085.0,68084.0,0.07307233]
[1730738560613,0.073464,68084.0,68083.0,0.07307233]
[1730738560810,0.073464,68084.0,68083.0,0.16769668]
[1730738561211,0.073464,68084.0,68083.0,0.09462435]
[1730738561421,0.14106505,68085.0,68079.0,0.07318833]
[1730738561628,0.21453305,68080.0,68079.0,0.073469]
[1730738562218,0.50186505,68080.0,68075.0,0.073473]
[1730738562418,0.50186505,68080.0,68074.0,0.073474]
[1730738562419,0.073472,68077.0,68074.0,0.073474]
[1730738562622,0.073472,68077.0,68075.0,0.073473]
[1730738563128,0.073471,68077.0,68073.0,0.073475]
[1730738563314,0.073471,68077.0,68074.0,0.073474]
[1730738563520,0.073473,68076.0,68074.0,0.073474]
[1730738563715,0.001,68077.0,68074.0,0.074474]
[1730738564414,0.001,68077.0,68075.0,0.073474]
[1730738564415,0.002,68077.0,68075.0,0.073474]
[1730738565122,0.002,68077.0,68076.0,0.33]
[1730738565321,0.001,68077.0,68076.0,0.33]
[1730738566024,0.074471,68077.0,68076.0,0.33]
[1730738566219,0.14106505,68096.0,68076.0,0.3608]
[1730738566422,0.073463,68086.0,68083.0,0.073465]
[1730738566625,0.073463,68086.0,68084.0,0.1537]
[1730738566822,0.073459,68089.0,68084.0,0.1537]
[1730738567016,0.073459,68089.0,68084.0,0.227164]
[1730738567217,0.3713428,68090.0,68085.0,0.22]
[1730738567524,0.073462,68087.0,68085.0,0.22]
[1730738567723,0.001,68086.0,68085.0,0.22]
[1730738567924,0.001,68086.0,68085.0,0.293463]
[1730738568223,0.3713428,68090.0,68085.0,0.22]
[1730738568418,0.3723428,68090.0,68088.0,0.073459]
[1730738569020,0.4457998,68090.0,68088.0,0.073459]
[1730738569225,0.3723428,68090.0,68085.0,0.22]
[1730738569432,0.3733428,68090.0,68088.0,0.073459]
[1730738569729,0.4467998,68090.0,68089.0,0.05853747]
[1730738570115,0.4457998,68090.0,68089.0,0.05853747]
[1730738570716,0.4467998,68090.0,68089.0,0.05853747]
[1730738571222,0.4457998,68090.0,68089.0,0.05853747]
[1730738571418,0.4467998,68090.0,68089.0,0.001]
[1730738572024,0.4467998,68090.0,68089.0,0.06050725]
[1730738572537,0.4467998,68090.0,68089.0,0.002]
[1730738574133,0.4428998,68090.0,68089.0,0.002]
[1730738574337,0.4428998,68090.0,68089.0,0.06054282]
[1730738574727,0.4428998,68090.0,68089.0,0.002]
[1730738576834,0.4428998,68090.0,68089.0,0.03871665]
[1730738577622,0.4406,68089.0,68083.0,0.05857968]
[1730738577821,0.07348,68069.0,68068.0,0.00088]
[1730738578024,0.073487,68064.0,68063.0,0.073486]
[1730738579137,0.073487,68064.0,68060.0,0.07318833]
[1730738579337,0.073487,68064.0,68042.0,0.08781788]
[1730738579338,0.073492,68058.0,68042.0,0.08781788]
[1730738579528,0.073492,68058.0,68024.0,0.3608]
[1730738579529,0.073511,68041.0,68026.0,0.073526]
[1730738579725,0.86266505,68043.0,68029.0,0.0782]
[1730738579936,0.14106505,68043.0,68030.0,0.09375314]
[1730738580135,0.14106505,68037.0,68031.0,0.09375314]
[1730738580438,0.073518,68035.0,68032.0,0.09414479]
[1730738580646,0.073518,68035.0,68033.0,0.09414479]
[1730738580947,0.073519,68034.0,68029.0,0.0782]
[1730738581126,0.14106505,68032.0,68029.0,0.0782]
[1730738581325,0.3608,68036.0,68029.0,0.0782]
[1730738582127,0.14106505,68033.0,68029.0,0.0782]
[1730738582331,0.001,68034.0,68029.0,0.0782]
[1730738582732,0.14206505,68043.0,68029.0,0.0782]
[1730738582733,0.001,68043.0,68033.0,0.50186505]
[1730738582935,0.0102,68057.0,68042.0,0.3608]
[1730738583140,0.14106505,68062.0,68049.0,0.073501]
[1730738583528,0.0102,68071.0,68057.0,0.14106505]
[1730738583529,0.083678,68071.0,68057.0,0.14106505]
[1730738583729,0.1432703,68072.0,68063.0,0.073486]
[1730738584038,0.1432703,68072.0,68056.0,0.734294]
[1730738584245,0.001,68057.0,68056.0,0.734294]
[1730738584540,0.1432703,68072.0,68056.0,0.734294]
[1730738584541,0.1432703,68072.0,68056.0,0.46273515]
[1730738584751,0.434282,68068.0,68052.0,0.3608]
[1730738584932,0.434282,68068.0,68057.0,0.22]
[1730738585142,0.073486,68064.0,68057.0,0.22]
[1730738585447,0.14106505,68066.0,68057.0,0.22]
[1730738585639,0.3608,68068.0,68057.0,0.22]
[1730738586141,0.3618,68068.0,68057.0,0.222]
[1730738587045,0.073484,68066.0,68057.0,0.229]
[1730738587243,0.14106505,68066.0,68057.0,0.229]
[1730738587547,0.3628,68068.0,68057.0,0.013]
[1730738587548,0.073491,68059.0,68057.0,0.013]
[1730738587850,0.31874505,68058.0,68028.0,0.01038999]
[1730738588047,0.3608,68044.0,68030.0,0.09277701]
[1730738588348,0.434307,68044.0,68033.0,0.3608]
[1730738588846,0.434307,68044.0,68032.0,0.14106505]
[1730738589051,0.434307,68044.0,68032.0,0.21458505]
[1730738589243,0.434307,68044.0,68032.0,0.43458505]
[1730738589953,0.073509,68043.0,68032.0,0.14106505]
[1730738590140,0.07351,68042.0,68032.0,0.14106505]
[1730738590341,0.07351,68042.0,68032.0,0.15506505]
[1730738590851,0.07351,68042.0,68032.0,0.16406505]
[1730738591345,0.07351,68042.0,68032.0,0.15006505]
[1730738591549,0.001,68044.0,68041.0,0.07351]
[1730738591748,0.001,68044.0,68039.0,0.3608]
[1730738591749,0.3608,68051.0,68043.0,0.14106505]
[1730738592051,0.3608,68051.0,68044.0,0.0796]
[1730738592449,0.073502,68050.0,68044.0,0.0796]
[1730738592953,0.3608,68051.0,68044.0,0.0796]
[1730738593148,0.3618,68051.0,68044.0,0.0796]
[1730738593753,0.001,68050.0,68044.0,0.0896]
[1730738594251,0.3608,68051.0,68041.0,0.009]
[1730738594443,0.3618,68051.0,68044.0,0.01]
[1730738594941,0.073506,68045.0,68044.0,0.01]
[1730738595145,0.073501,68050.0,68044.0,0.01]
[1730738595344,0.073504,68047.0,68044.0,0.01]
[1730738595642,0.073501,68050.0,68044.0,0.019]
[1730738595843,0.3628,68051.0,68044.0,0.019]
[1730738596044,0.073503,68048.0,68045.0,0.22]
[1730738597160,0.073505,68046.0,68045.0,0.22]
[1730738597759,0.001,68047.0,68044.0,0.012]
[1730738597958,0.001,68050.0,68046.0,0.3608]
[1730738598257,0.001,68050.0,68049.0,0.21456705]
[1730738598845,0.001,68050.0,68049.0,0.43456705]
[1730738599150,0.01050517,68066.0,68053.0,0.073497]
[1730738599351,0.073486,68064.0,68055.0,0.3608]
[1730738600246,0.073487,68063.0,68056.0,0.0752]
[1730738600852,0.073492,68058.0,68056.0,0.0752]
[1730738601052,0.073494,68056.0,68055.0,0.001]
[1730738601252,0.434294,68056.0,68055.0,0.001]
[1730738601455,0.91220989,68056.0,68055.0,0.001]
[1730738601653,0.073501,68050.0,68036.0,0.073516]
[1730738601962,0.434302,68049.0,68038.0,0.073513]
[1730738602260,0.073505,68046.0,68039.0,0.3608]
[1730738602450,0.3608,68049.0,68039.0,0.3608]
[1730738602650,0.07351,68041.0,68039.0,0.3608]
[1730738602854,0.07351,68041.0,68032.0,0.1506]
[1730738602855,0.073518,68034.0,68032.0,0.0743]
[1730738603058,0.3608,68036.0,68033.0,0.0731]
[1730738603456,0.073518,68034.0,68033.0,0.0731]
[1730738604063,0.3608,68036.0,68033.0,0.0731]
[1730738604263,0.434316,68036.0,68033.0,0.0731]
[1730738604469,0.434316,68036.0,68033.0,0.011]
[1730738604470,0.073517,68035.0,68033.0,0.011]
[1730738604761,0.073517,68035.0,68033.0,0.021]
[1730738605158,0.073518,68034.0,68033.0,0.021]
[1730738605959,0.001,68034.0,68033.0,0.02]
[1730738606264,0.074518,68034.0,68033.0,0.02]
[1730738606465,0.074518,68034.0,68033.0,0.01]
[1730738606659,0.074518,68034.0,68033.0,0.02]
[1730738607354,0.074518,68034.0,68033.0,0.01]
[1730738607566,0.075518,68034.0,68033.0,0.02]
[1730738610469,0.002,68034.0,68033.0,0.02]
[1730738610671,0.002,68034.0,68033.0,0.093519]
[1730738610971,0.002,68034.0,68033.0,0.11443955]
[1730738611177,0.002,68034.0,68033.0,0.11448661]
[1730738611371,0.002,68034.0,68033.0,0.18769374]
[1730738611675,0.002,68034.0,68033.0,0.11448661]
[1730738612079,0.002,68034.0,68033.0,0.18769278]
[1730738612273,0.002,68034.0,68033.0,0.26121509]
[1730738612501,0.002,68034.0,68033.0,0.18779947]
[1730738613280,0.001,68034.0,68033.0,0.1764888]
[1730738613481,0.001,68034.0,68033.0,0.018]
[1730738613482,0.002,68034.0,68033.0,0.018]
[1730738614179,0.075518,68034.0,68033.0,0.017]
[1730738614379,0.074518,68034.0,68033.0,0.008]
[1730738614577,0.075518,68034.0,68033.0,0.013]
[1730738616181,0.001,68034.0,68033.0,0.005]
[1730738616380,0.073533,68020.0,68019.0,6.775e-05]
[1730738616578,0.073548,68006.0,68001.0,0.3608]
[1730738616780,0.14106505,68006.0,67999.0,0.073555]
[1730738616983,0.073546,68008.0,68000.0,0.224554]
[1730738617291,0.14106505,68007.0,68000.0,0.151]
[1730738619293,0.14106505,68007.0,68000.0,0.155]
[1730738619494,0.14106505,68007.0,68000.0,0.164]
[1730738619887,0.002,68008.0,68004.0,0.07355]
[1730738620077,0.14106505,68005.0,68000.0,0.155]
[1730738620282,0.14106505,68005.0,68000.0,0.159]
[1730738620483,0.14106505,68005.0,68000.0,0.228554]
[1730738621094,0.14106505,68005.0,68000.0,0.151]
[1730738621280,0.14106505,68005.0,68000.0,0.224555]
[1730738622579,0.14106505,68005.0,68001.0,0.22]
[1730738622983,0.14206505,68005.0,68001.0,0.22]
[1730738623490,0.14306505,68005.0,68001.0,0.22]
[1730738623794,0.002,68005.0,68004.0,0.43435]
[1730738624186,0.001,68005.0,68004.0,0.07355]
[1730738624386,0.001,68005.0,68004.0,0.65435]
[1730738624586,0.14106505,68012.0,68010.0,0.073544]
[1730738624887,0.14106505,68012.0,68004.0,0.22]
[1730738625086,0.073552,68002.0,68001.0,0.006]
[1730738625389,0.93621405,68005.0,68001.0,0.006]
[1730738625593,0.073552,68003.0,68001.0,0.006]
[1730738625902,0.073552,68003.0,68001.0,0.003]
[1730738626094,0.073552,68003.0,68000.0,0.151]
[1730738626291,0.07355,68004.0,68000.0,0.151]
[1730738626598,0.86266505,68005.0,68000.0,0.151]
[1730738626902,0.86266505,68005.0,68001.0,0.007]
[1730738627286,0.001,68003.0,68001.0,0.003]
[1730738627488,0.073552,68002.0,68000.0,0.159]
[1730738627798,0.073554,68001.0,68000.0,0.159]
[1730738629385,0.073554,68001.0,68000.0,0.151]
[1730738629582,0.074554,68001.0,68000.0,0.155]
[1730738630293,0.074554,68001.0,68000.0,0.159]
[1730738631202,0.07357,67986.0,67983.0,0.00220628]
[1730738631495,0.50186505,67984.0,67983.0,0.07577928]
[1730738631699,0.3608,67984.0,67983.0,0.07577928]
[1730738632493,0.3608,67984.0,67983.0,0.01120628]
[1730738632707,0.3608,67984.0,67983.0,0.01520628]
[1730738632708,0.3618,67984.0,67983.0,0.01520628]
[1730738633203,0.3618,67984.0,67983.0,0.00620628]
[1730738633392,0.3628,67984.0,67983.0,0.01520628]
[1730738633591,0.436372,67984.0,67983.0,0.01520628]
[1730738635405,0.57743705,67984.0,67983.0,0.01520628]
[1730738635796,0.436372,67984.0,67983.0,0.013]
[1730738636903,0.57743705,67984.0,67983.0,0.013]
[1730738637502,0.3628,67984.0,67983.0,0.086573]
[1730738637702,0.436372,67984.0,67983.0,0.086573]
[1730738638099,0.436372,67984.0,67983.0,0.013]
[1730738638496,0.3628,67984.0,67983.0,0.086573]
[1730738638701,0.3628,67984.0,67983.0,0.013]
[1730738639305,0.3628,67984.0,67983.0,0.22763805]
[1730738639806,0.3628,67984.0,67983.0,0.086573]
[1730738640202,0.57743705,67984.0,67983.0,0.013]
[1730738640998,0.57488929,67984.0,67983.0,0.013]
[1730738641195,0.073584,67973.0,67972.0,0.15768]
[1730738641503,0.3608,67973.0,67972.0,0.15768]
[1730738641702,0.073577,67980.0,67974.0,0.073582]
[1730738641899,0.36121224,67984.0,67975.0,0.0797]
[1730738642098,0.073574,67982.0,67976.0,0.07358]
[1730738642294,0.073574,67982.0,67977.0,0.04379312]
[1730738642507,0.49931729,67984.0,67977.0,0.04379312]
[1730738642719,0.07359,67967.0,67966.0,0.00076]
[1730738642900,0.073608,67951.0,67950.0,0.4]
[1730738643101,0.073608,67951.0,67950.0,0.0192923]
[1730738643102,1.11315305,67951.0,67950.0,0.0192923]
[1730738643309,1.16308,67951.0,67937.0,0.00220778]
[1730738643506,0.3557521,67938.0,67927.0,0.07320833]
[1730738643707,0.3557521,67938.0,67905.0,0.0073]
[1730738643708,0.073638,67924.0,67917.0,0.07320833]
[1730738643910,0.14106505,67918.0,67915.0,0.07541681]
[1730738644103,0.14106505,67918.0,67916.0,0.07320833]
[1730738644304,0.14106505,67918.0,67915.0,0.07585448]
[1730738644511,0.14106505,67918.0,67915.0,0.00220848]
[1730738644704,0.073647,67915.0,67899.0,0.07320833]
[1730738644918,0.18476,67915.0,67893.0,0.3608]
[1730738645099,0.14106505,67902.0,67893.0,0.43400833]
[1730738645295,0.18476,67915.0,67890.0,0.073673]
[1730738645296,0.21472705,67901.0,67890.0,0.073673]
[1730738645506,0.28600445,67901.0,67883.0,0.07320833]
[1730738645714,0.72784445,67901.0,67885.0,0.073679]
[1730738645907,0.72784445,67901.0,67882.0,0.3608]
[1730738646114,0.51234245,67901.0,67882.0,0.0608]
[1730738646417,0.3608,67903.0,67883.0,0.073681]
[1730738646418,0.21234245,67889.0,67883.0,0.073681]
[1730738646597,0.21234245,67889.0,67882.0,0.0608]
[1730738646913,0.21234245,67889.0,67878.0,0.00220969]
[1730738646914,0.3608,67884.0,67878.0,0.00220969]
[1730738647306,0.3608,67884.0,67878.0,0.07589669]
[1730738647507,0.073682,67883.0,67878.0,0.00220969]
[1730738647715,0.3608,67890.0,67878.0,0.00220969]
[1730738647897,0.07586072,67912.0,67899.0,0.073663]
[1730738648096,0.00221072,67912.0,67889.0,0.57314245]
[1730738648302,0.00221072,67912.0,67898.0,0.21234245]
[1730738648514,0.3608,67920.0,67919.0,0.073642]
[1730738648702,0.0136,67928.0,67927.0,0.073634]
[1730738648903,0.0036,67928.0,67927.0,0.073634]
[1730738649115,0.0036,67928.0,67927.0,0.515274]
[1730738650305,0.0036,67928.0,67927.0,0.073634]
[1730738650723,0.0036,67928.0,67927.0,0.515274]
[1730738650901,0.3608,67943.0,67927.0,0.515274]
[1730738651106,0.3608,67943.0,67938.0,0.073621]
[1730738651301,0.3608,67943.0,67939.0,0.24]
[1730738651521,0.3608,67943.0,67939.0,0.313621]
[1730738651905,0.3608,67943.0,67940.0,0.073619]
[1730738652132,0.3618,67943.0,67939.0,0.24]
[1730738652410,0.3628,67943.0,67939.0,0.24]
[1730738652799,0.3628,67943.0,67942.0,0.073617]
[1730738653005,0.3628,67943.0,67939.0,0.24]
[1730738653814,0.3628,67943.0,67942.0,0.073617]
[1730738654001,0.002,67943.0,67942.0,0.434417]
[1730738654206,0.001,67943.0,67942.0,0.875977]
[1730738654421,0.002,67943.0,67942.0,0.875977]
[1730738654914,0.3608,67962.0,67942.0,1.10236]
[1730738655117,0.3608,67970.0,67964.0,0.073593]
[1730738655315,0.3608,67970.0,67957.0,0.3608]
[1730738655613,0.3608,67970.0,67966.0,0.073591]
[1730738655819,0.3608,67970.0,67962.0,0.073596]
[1730738656425,0.073591,67967.0,67952.0,0.3608]
[1730738656714,0.3608,67970.0,67952.0,0.3608]
[1730738657017,0.3608,67970.0,67962.0,0.073595]
[1730738657213,0.073589,67968.0,67960.0,0.073597]
[1730738657414,0.3608,67970.0,67959.0,0.21234245]
[1730738657604,0.3608,67970.0,67959.0,0.57314245]
[1730738657912,0.3618,67970.0,67959.0,0.57314245]
[1730738658115,0.07359,67967.0,67959.0,0.64674145]
[1730738658308,0.3618,67970.0,67959.0,0.57314245]
[1730738658513,0.001,67968.0,67961.0,0.073597]
[1730738659107,0.437347,67970.0,67962.0,0.073595]
[1730738659309,0.436387,67970.0,67962.0,0.073595]
[1730738659714,0.001,67968.0,67960.0,0.24]
[1730738659914,0.03443371,67967.0,67964.0,0.073594]
[1730738660127,0.03443371,67966.0,67964.0,0.03889313]
[1730738660424,0.001,67968.0,67960.0,0.24]
[1730738660425,0.03443371,67965.0,67960.0,0.24]
[1730738660625,0.03443371,67964.0,67960.0,0.313598]
[1730738660811,0.001,67968.0,67960.0,0.313598]
[1730738660812,0.001,67968.0,67961.0,0.073596]
[1730738661013,0.073602,67957.0,67949.0,0.3608]
[1730738661218,0.3608,67963.0,67949.0,0.3608]
[1730738661219,0.03383215,67956.0,67949.0,0.3608]
[1730738661422,0.03383215,67955.0,67950.0,0.073609]
[1730738661623,0.03383215,67954.0,67950.0,0.073609]
[1730738661812,0.03383215,67953.0,67949.0,0.3608]
[1730738662012,0.3608,67963.0,67943.0,0.4398]
[1730738662013,0.073614,67946.0,67943.0,0.0008]
[1730738662316,0.03333024,67945.0,67939.0,0.07362]
[1730738662519,0.03333024,67944.0,67933.0,0.6008]
[1730738662822,0.03333024,67943.0,67933.0,0.6008]
[1730738663017,0.03333024,67942.0,67933.0,0.6008]
[1730738663221,0.03333024,67941.0,67933.0,0.6008]
[1730738663525,0.073614,67946.0,67938.0,0.073621]
[1730738663724,0.03320419,67945.0,67938.0,0.073621]
[1730738663921,0.03320419,67944.0,67938.0,0.073621]
[1730738664125,0.03320419,67943.0,67938.0,0.073621]
[1730738664328,0.03320419,67942.0,67938.0,0.073621]
[1730738664516,0.03421827,67941.0,67940.0,0.07362]
[1730738664825,0.002,67941.0,67940.0,0.07362]
[1730738665213,0.001,67941.0,67940.0,0.07362]
[1730738665411,0.03431746,67941.0,67940.0,0.07362]
[1730738665619,0.03331746,67941.0,67940.0,0.07362]
[1730738665928,0.002,67943.0,67933.0,0.6008]
[1730738666228,0.002,67943.0,67942.0,0.073617]
[1730738666617,0.0354221,67943.0,67942.0,0.073617]
[1730738666816,0.0344221,67943.0,67942.0,0.073617]
[1730738667016,0.001,67943.0,67942.0,0.073617]
[1730738667226,0.3608,67957.0,67951.0,0.073608]
[1730738668122,0.3608,67957.0,67947.0,0.24]
[1730738668123,0.3608,67957.0,67948.0,0.073611]
[1730738668320,0.3608,67957.0,67947.0,0.24]
[1730738668525,0.3608,67957.0,67955.0,0.073603]
[1730738668726,0.073592,67966.0,67947.0,0.24]
[1730738668927,0.3608,67971.0,67954.0,0.3608]
[1730738669130,0.073589,67968.0,67961.0,0.073596]
[1730738669329,0.073589,67968.0,67955.0,0.0594]
[1730738669524,0.3608,67971.0,67963.0,0.073595]
[1730738669722,0.3608,67971.0,67955.0,0.0594]